bitfinex-derivatives/quotes_BTCF0:USTF0_20241231
["timestamp","ask_amount","ask_price","bid_price","bid_amount"]
[1735610533964,0.49734906,92527.0,92523.0,0.0514]
[1735610536468,0.49834906,92527.0,92523.0,0.0514]
[1735610538773,0.49834906,92527.0,92523.0,0.0524]
[1735610539276,0.49734906,92527.0,92523.0,0.0524]
[1735610540167,0.02164879,92542.0,92528.0,0.054131]
[1735610540479,0.00985852,92542.0,92535.0,0.054128]
[1735610540679,0.3608,92546.0,92536.0,1.5]
[1735610541770,0.37048322,92546.0,92536.0,1.5]
[1735610542069,0.37148322,92546.0,92536.0,1.5]
[1735610543076,0.37348322,92546.0,92536.0,1.5]
[1735610543277,0.37348322,92546.0,92534.0,0.3608]
[1735610545171,0.37248322,92546.0,92534.0,0.3608]
[1735610545372,0.37048322,92546.0,92534.0,0.3608]
[1735610545572,0.37148322,92546.0,92534.0,0.3608]
[1735610547782,0.37148322,92546.0,92535.0,0.054128]
[1735610547977,0.37148322,92546.0,92534.0,0.3608]
[1735610547978,0.37148322,92546.0,92537.0,0.054126]
[1735610548181,0.37148322,92546.0,92538.0,0.054126]
[1735610548691,0.37148322,92546.0,92539.0,0.054125]
[1735610549381,0.37148322,92546.0,92534.0,0.3608]
[1735610549382,0.37348322,92546.0,92541.0,0.054124]
[1735610549586,0.37348322,92546.0,92542.0,0.1107]
[1735610549987,0.37548322,92546.0,92542.0,0.1107]
[1735610551277,0.37548322,92546.0,92542.0,0.1634]
[1735610551475,0.37448322,92546.0,92542.0,0.1634]
[1735610551678,0.37248322,92546.0,92542.0,0.1634]
[1735610551981,0.37748322,92546.0,92542.0,0.1634]
[1735610553580,0.01668322,92546.0,92542.0,0.578323]
[1735610553791,0.48508,92562.0,92542.0,0.5242]
[1735610553996,0.48508,92562.0,92553.0,0.3608]
[1735610554177,0.49747364,92562.0,92553.0,0.3608]
[1735610554883,0.49747364,92562.0,92553.0,0.414917]
[1735610555081,0.49947364,92562.0,92554.0,1.5]
[1735610555887,0.49747364,92562.0,92554.0,1.5]
[1735610558087,0.49747364,92562.0,92554.0,1.501]
[1735610558288,0.49747364,92562.0,92554.0,1.502]
[1735610558996,0.49747364,92562.0,92554.0,1.556116]
[1735610559394,0.49747364,92562.0,92554.0,1.502]
[1735610559588,0.49747364,92562.0,92558.0,0.054114]
[1735610559789,0.49747364,92562.0,92561.0,0.3608]
[1735610559991,0.01239364,92562.0,92561.0,0.3608]
[1735610560293,0.11257518,92580.0,92561.0,0.3608]
[1735610560593,0.11257518,92580.0,92570.0,0.3608]
[1735610560793,0.3608,92584.0,92570.0,0.3608]
[1735610560999,0.37298178,92584.0,92570.0,0.47337518]
[1735610561195,0.37298178,92584.0,92571.0,0.054107]
[1735610561692,0.37298178,92584.0,92573.0,0.054105]
[1735610561900,0.01218178,92584.0,92573.0,0.054105]
[1735610562098,0.0542,92588.0,92580.0,0.3608]
[1735610562285,0.003,92584.0,92580.0,0.3608]
[1735610562481,0.01,92584.0,92580.0,0.3608]
[1735610563292,0.1,92600.0,92581.0,0.0538]
[1735610563501,0.1,92600.0,92595.0,0.3608]
[1735610565196,0.11747486,92600.0,92595.0,0.3608]
[1735610565993,0.12147486,92600.0,92595.0,0.3618]
[1735610566194,0.12147486,92600.0,92595.0,0.3648]
[1735610566406,0.11247486,92600.0,92595.0,0.3698]
[1735610566593,0.11347486,92600.0,92595.0,0.3698]
[1735610568595,0.11347486,92600.0,92595.0,0.3668]
[1735610568902,0.11347486,92600.0,92595.0,0.3698]
[1735610569295,0.11347486,92600.0,92595.0,0.3638]
[1735610569498,0.11347486,92600.0,92595.0,0.3698]
[1735610569999,0.11247486,92600.0,92595.0,0.3638]
[1735610570200,0.11247486,92600.0,92595.0,0.3698]
[1735610570201,0.11347486,92600.0,92595.0,0.3698]
[1735610570397,0.11347486,92600.0,92595.0,0.3668]
[1735610570598,0.11347486,92600.0,92595.0,0.3698]
[1735610571412,5.363e-05,92598.0,92596.0,0.054092]
[1735610571591,0.3608,92616.0,92606.0,0.054086]
[1735610571901,0.1092,92620.0,92607.0,0.054085]
[1735610572101,0.1092,92620.0,92613.0,0.3608]
[1735610572901,0.38222781,92629.0,92613.0,0.3608]
[1735610573106,0.3608,92629.0,92613.0,0.3608]
[1735610573500,0.057,92620.0,92606.0,0.001]
[1735610573899,0.1111,92620.0,92606.0,0.001]
[1735610574203,0.1111,92620.0,92607.0,1.5]
[1735610574601,0.1131,92620.0,92607.0,1.554085]
[1735610575298,0.1111,92620.0,92607.0,1.555085]
[1735610575800,0.1111,92620.0,92607.0,1.556085]
[1735610575994,0.1111,92620.0,92607.0,0.056085]
[1735610577308,0.057,92620.0,92607.0,0.056085]
[1735610578699,0.057,92620.0,92608.0,1.5]
[1735610578900,0.057,92620.0,92612.0,0.3608]
[1735610580198,0.49783116,92621.0,92612.0,0.3608]
[1735610580410,0.49687115,92621.0,92612.0,0.3608]
[1735610581497,0.001,92620.0,92612.0,0.3608]
[1735610582109,0.49783116,92621.0,92612.0,0.3718]
[1735610582110,0.49883116,92621.0,92612.0,0.3718]
[1735610582298,0.49787115,92621.0,92612.0,0.3718]
[1735610582609,0.49687115,92621.0,92612.0,0.3648]
[1735610582809,0.49687115,92621.0,92612.0,0.3698]
[1735610583702,0.49687115,92621.0,92612.0,0.3658]
[1735610583999,0.49687115,92621.0,92612.0,0.3678]
[1735610584614,0.49687115,92621.0,92612.0,0.3668]
[1735610584795,0.0546,92636.0,92620.0,0.3608]
[1735610584994,0.01205568,92636.0,92626.0,0.11257518]
[1735610585208,0.3608,92641.0,92632.0,0.054071]
[1735610585404,0.3608,92641.0,92634.0,0.05407]
[1735610585596,0.3728483,92641.0,92634.0,0.05407]
[1735610585795,0.3728483,92641.0,92635.0,1.5]
[1735610586000,0.0120483,92641.0,92635.0,1.5]
[1735610586199,0.0563,92648.0,92635.0,1.5]
[1735610586396,0.0563,92648.0,92638.0,0.11257518]
[1735610586808,0.06873442,92648.0,92640.0,0.3608]
[1735610587603,0.01243442,92648.0,92640.0,0.3608]
[1735610587807,0.006,92641.0,92640.0,0.3608]
[1735610588117,0.008,92641.0,92640.0,0.3608]
[1735610588300,0.002,92641.0,92640.0,0.3608]
[1735610588609,0.002,92641.0,92640.0,0.3618]
[1735610588807,0.006,92648.0,92640.0,0.3618]
[1735610589113,0.008,92641.0,92640.0,0.3618]
[1735610590501,0.008,92641.0,92640.0,0.001]
[1735610590703,0.006,92641.0,92620.0,0.47337518]
[1735610590900,0.01433181,92648.0,92630.0,0.11257518]
[1735610591099,0.3608,92642.0,92640.0,0.001]
[1735610591811,0.008,92641.0,92640.0,0.001]
[1735610592012,0.0613,92641.0,92640.0,0.001]
[1735610592407,0.0553,92641.0,92629.0,0.3608]
[1735610592615,0.0553,92641.0,92640.0,0.001]
[1735610593910,0.0533,92641.0,92640.0,0.001]
[1735610594915,0.0613,92641.0,92640.0,0.001]
[1735610596434,0.008,92641.0,92640.0,0.001]
[1735610600022,0.008,92641.0,92640.0,0.055066]
[1735610600416,0.008,92641.0,92640.0,0.112]
[1735610600917,0.008,92641.0,92640.0,0.001]
[1735610601718,0.1064,92645.0,92640.0,0.001]
[1735610602218,0.3608,92644.0,92640.0,0.001]
[1735610602619,0.3608,92644.0,92631.0,0.19285603]
[1735610602818,0.008,92641.0,92640.0,0.001]
[1735610604217,0.002,92641.0,92629.0,0.19285603]
[1735610604416,0.11257518,92640.0,92629.0,0.19285603]
[1735610605012,0.52515036,92640.0,92629.0,0.12895309]
[1735610605219,0.3608,92631.0,92622.0,0.22098532]
[1735610605526,0.3608,92623.0,92622.0,0.1312316]
[1735610605828,0.3608,92623.0,92616.0,0.32337295]
[1735610606029,0.1118,92622.0,92616.0,0.32337295]
[1735610606725,0.1118,92622.0,92599.0,0.3608]
[1735610606917,0.11257518,92610.0,92599.0,0.3608]
[1735610607820,0.11257518,92610.0,92599.0,0.3658]
[1735610608227,0.3608,92613.0,92599.0,0.005]
[1735610608527,0.3608,92613.0,92599.0,0.3648]
[1735610609021,0.3608,92613.0,92599.0,0.3668]
[1735610609223,0.3608,92613.0,92599.0,0.3678]
[1735610609424,0.3608,92613.0,92599.0,0.007]
[1735610609720,0.11257518,92610.0,92599.0,0.007]
[1735610610321,0.3608,92613.0,92600.0,0.3608]
[1735610611025,0.3608,92613.0,92612.0,1.5]
[1735610611228,0.37286832,92613.0,92612.0,1.5]
[1735610611617,0.37286832,92613.0,92600.0,0.3638]
[1735610611823,0.11257518,92610.0,92600.0,0.3638]
[1735610612022,0.37286832,92613.0,92600.0,0.3608]
[1735610612224,0.37286832,92613.0,92601.0,1.5]
[1735610612423,0.37286832,92613.0,92612.0,0.001]
[1735610614333,0.37286832,92613.0,92601.0,1.5]
[1735610614638,0.37286832,92613.0,92600.0,0.3658]
[1735610614639,0.11257518,92611.0,92600.0,0.3658]
[1735610614836,0.11257518,92611.0,92600.0,0.3628]
[1735610615135,0.37286832,92613.0,92612.0,0.001]
[1735610615840,0.37286832,92613.0,92601.0,0.002]
[1735610616024,0.37286832,92613.0,92600.0,1.8608]
[1735610616025,0.11257518,92611.0,92600.0,1.86236]
[1735610616222,0.11357518,92611.0,92600.0,1.8688]
[1735610617634,0.11357518,92611.0,92600.0,1.8678]
[1735610617822,0.11257518,92611.0,92600.0,0.3608]
[1735610618428,0.11257518,92611.0,92600.0,0.3628]
[1735610618429,0.11257518,92610.0,92600.0,0.3628]
[1735610618630,0.0837,92610.0,92600.0,0.3668]
[1735610619241,0.19627518,92610.0,92600.0,0.3668]
[1735610619443,0.0837,92610.0,92600.0,0.3668]
[1735610619944,0.0837,92610.0,92600.0,0.006]
[1735610620146,0.0423,92610.0,92600.0,0.006]
[1735610620339,0.3608,92605.0,92600.0,0.006]
[1735610620936,0.3608,92605.0,92600.0,0.005]
[1735610621445,0.3608,92605.0,92600.0,0.002]
[1735610621944,0.3608,92605.0,92598.0,0.0539]
[1735610623647,0.3608,92605.0,92584.0,0.4174]
[1735610623842,0.11257518,92594.0,92584.0,0.3608]
[1735610624550,0.3608,92591.0,92584.0,0.3608]
[1735610625139,0.3608,92591.0,92584.0,0.3638]
[1735610625742,0.3608,92591.0,92584.0,0.003]
[1735610626053,0.3608,92587.0,92558.0,0.0438]
[1735610626241,0.11257518,92570.0,92559.0,1.5]
[1735610626635,0.11257518,92570.0,92560.0,0.0435]
[1735610627447,0.12796513,92570.0,92560.0,0.0435]
[1735610628452,0.12796513,92570.0,92560.0,0.0475]
[1735610629045,0.12896513,92570.0,92560.0,0.0555]
[1735610629850,0.3608,92562.0,92560.0,0.0555]
[1735610630556,0.3608,92562.0,92560.0,0.0475]
[1735610630756,0.3608,92562.0,92560.0,0.0535]
[1735610631146,0.3608,92562.0,92560.0,0.0475]
[1735610631343,0.3618,92562.0,92560.0,0.0525]
[1735610631846,0.3608,92562.0,92560.0,0.0465]
[1735610632045,0.3618,92562.0,92560.0,0.0495]
[1735610632249,0.3618,92562.0,92560.0,0.0525]
[1735610632446,0.3608,92562.0,92560.0,0.0465]
[1735610632647,0.3618,92562.0,92560.0,0.0525]
[1735610633054,0.3618,92562.0,92560.0,0.0495]
[1735610633257,0.3618,92562.0,92560.0,0.0525]
[1735610634654,0.12796513,92570.0,92560.0,0.0435]
[1735610634849,0.12796513,92570.0,92560.0,0.0505]
[1735610637460,0.12796513,92570.0,92560.0,0.0495]
[1735610638153,0.12796513,92570.0,92560.0,0.0475]
[1735610638367,0.12796513,92570.0,92560.0,0.0495]
[1735610638368,0.3608,92567.0,92560.0,0.0495]
[1735610639854,0.3608,92567.0,92560.0,0.0475]
[1735610640056,0.3608,92567.0,92560.0,0.0495]
[1735610640358,0.3608,92567.0,92560.0,0.0455]
[1735610640660,0.3608,92567.0,92560.0,0.0475]
[1735610641157,0.3608,92567.0,92560.0,0.0455]
[1735610641352,0.3608,92567.0,92560.0,0.0495]
[1735610641762,0.3608,92567.0,92560.0,0.0455]
[1735610642057,0.3608,92567.0,92560.0,0.0475]
[1735610642263,0.3608,92567.0,92560.0,0.004]
[1735610643650,0.3608,92566.0,92548.0,0.0412]
[1735610643860,0.3608,92566.0,92510.0,0.11257518]
[1735610643861,0.3608,92555.0,92534.0,0.0833]
[1735610644159,0.3608,92545.0,92538.0,1.5]
[1735610645156,0.3608,92545.0,92534.0,0.0833]
[1735610645363,0.11257518,92544.0,92534.0,0.0833]
[1735610645564,0.11257518,92544.0,92535.0,1.5]
[1735610645859,0.3608,92537.0,92535.0,1.5]
[1735610646057,0.3608,92537.0,92534.0,0.0833]
[1735610646265,0.3608,92537.0,92534.0,0.0873]
[1735610647158,0.3618,92537.0,92535.0,0.0466]
[1735610647753,0.3618,92537.0,92535.0,0.0446]
[1735610648158,0.3618,92537.0,92535.0,0.0486]
[1735610648465,0.3618,92537.0,92535.0,0.0506]
[1735610648963,0.3618,92537.0,92535.0,0.0466]
[1735610649162,0.001,92537.0,92535.0,0.0486]
[1735610649555,0.01556662,92545.0,92536.0,0.414927]
[1735610649752,0.3608,92559.0,92544.0,0.3608]
[1735610649753,0.01550202,92559.0,92544.0,0.3608]
[1735610649962,0.11257518,92560.0,92552.0,0.3608]
[1735610650167,0.11257518,92560.0,92553.0,0.086]
[1735610650360,0.12797326,92560.0,92553.0,0.086]
[1735610650753,0.01539808,92560.0,92553.0,0.086]
[1735610651064,0.004,92560.0,92557.0,0.054115]
[1735610651460,0.004,92560.0,92553.0,0.086]
[1735610651663,0.02163697,92583.0,92576.0,0.054104]
[1735610651869,0.11257518,92600.0,92582.0,0.3608]
[1735610652258,0.11257518,92600.0,92590.0,0.3608]
[1735610653369,0.12457518,92600.0,92590.0,0.3618]
[1735610655064,0.12657518,92600.0,92590.0,0.3628]
[1735610655865,0.3608,92594.0,92590.0,0.002]
[1735610656066,0.3608,92594.0,92582.0,0.34058672]
[1735610656365,0.11257518,92592.0,92582.0,0.34058672]
[1735610656873,0.3608,92593.0,92582.0,0.34058672]
[1735610657061,0.3608,92593.0,92590.0,0.001]
[1735610657369,0.009,92594.0,92590.0,0.001]
[1735610657555,0.006,92592.0,92590.0,0.001]
[1735610658158,0.006,92592.0,92591.0,0.3608]
[1735610658968,0.006,92592.0,92591.0,1.8608]
[1735610659159,0.3759427,92602.0,92591.0,1.8608]
[1735610659362,0.014,92593.0,92592.0,0.0419]
[1735610659764,0.0151427,92602.0,92592.0,0.0419]
[1735610660068,0.48484,92608.0,92593.0,0.054093]
[1735610660268,0.48484,92608.0,92599.0,0.3608]
[1735610660861,0.001,92602.0,92599.0,0.3608]
[1735610662167,0.001,92602.0,92592.0,0.0419]
[1735610662469,0.50515775,92608.0,92592.0,0.0419]
[1735610662668,0.50515775,92608.0,92580.0,0.11257518]
[1735610662669,0.11257518,92602.0,92579.0,0.3608]
[1735610662970,0.3608,92604.0,92579.0,0.3608]
[1735610662971,0.11257518,92600.0,92579.0,0.3608]
[1735610663470,0.11257518,92590.0,92579.0,0.3608]
[1735610663665,0.3608,92580.0,92562.0,0.3608]
[1735610663873,0.3608,92580.0,92562.0,1.8608]
[1735610664274,0.3608,92580.0,92579.0,0.003]
[1735610664665,0.3608,92580.0,92579.0,0.009]
[1735610666276,0.3608,92580.0,92570.0,0.3608]
[1735610666577,0.3618,92580.0,92570.0,0.3608]
[1735610667074,0.3608,92580.0,92579.0,0.003]
[1735610667370,0.3608,92580.0,92579.0,0.004]
[1735610667681,0.37681902,92580.0,92579.0,0.001]
[1735610667875,0.01601902,92580.0,92579.0,0.415902]
[1735610668071,0.001,92580.0,92579.0,1.915902]
[1735610668377,0.01504362,92583.0,92581.0,0.0541]
[1735610668574,0.3608,92591.0,92583.0,0.054099]
[1735610668962,0.3608,92591.0,92580.0,0.0415]
[1735610669277,0.11257518,92590.0,92579.0,0.3654]
[1735610669475,0.37649395,92591.0,92579.0,0.3648]
[1735610669661,0.37649395,92591.0,92579.0,0.3638]
[1735610669866,0.11257518,92590.0,92579.0,0.3638]
[1735610670473,0.11257518,92590.0,92579.0,0.3658]
[1735610670773,0.11257518,92590.0,92579.0,0.3688]
[1735610671375,0.11257518,92590.0,92579.0,0.3658]
[1735610672274,0.0408,92589.0,92579.0,0.3658]
[1735610672475,0.37649395,92591.0,92579.0,0.3658]
[1735610672778,0.11257518,92590.0,92579.0,0.3628]
[1735610672983,0.11257518,92590.0,92579.0,0.3648]
[1735610673183,0.11357518,92590.0,92579.0,1.8648]
[1735610673485,0.11357518,92590.0,92579.0,1.8638]
[1735610673982,0.11257518,92590.0,92579.0,1.8628]
[1735610674181,0.11257518,92590.0,92579.0,1.8668]
[1735610674778,0.11257518,92590.0,92579.0,1.8628]
[1735610674973,0.11257518,92590.0,92579.0,1.8658]
[1735610676172,0.11257518,92590.0,92579.0,1.8648]
[1735610676874,0.11257518,92590.0,92579.0,1.8618]
[1735610677075,0.11257518,92590.0,92579.0,1.8658]
[1735610677581,0.11257518,92590.0,92579.0,0.3648]
[1735610678183,0.11257518,92590.0,92579.0,0.3658]
[1735610679678,0.3608,92588.0,92579.0,0.005]
[1735610679880,0.3608,92588.0,92579.0,0.003]
[1735610680479,0.3608,92580.0,92579.0,0.003]
[1735610680685,0.3608,92580.0,92579.0,0.004]
[1735610680879,0.3608,92580.0,92579.0,0.002]
[1735610681081,0.3608,92580.0,92579.0,0.006]
[1735610681587,0.3608,92580.0,92579.0,0.002]
[1735610683082,0.3608,92580.0,92572.0,0.0409]
[1735610683286,0.3608,92580.0,92579.0,0.002]
[1735610683784,0.3608,92580.0,92572.0,0.0409]
[1735610683981,0.3608,92580.0,92579.0,0.001]
[1735610684385,0.11257518,92582.0,92572.0,0.0409]
[1735610684585,0.11257518,92582.0,92579.0,0.002]
[1735610684786,0.3608,92588.0,92579.0,0.004]
[1735610686080,0.3608,92588.0,92579.0,0.002]
[1735610686388,0.3608,92588.0,92579.0,0.001]
[1735610686687,0.3608,92588.0,92580.0,0.054101]
[1735610686887,0.3608,92588.0,92579.0,0.005]
[1735610687091,0.01569395,92591.0,92583.0,0.3608]
[1735610687390,0.11257518,92600.0,92583.0,0.3608]
[1735610687391,0.09963153,92599.0,92583.0,0.3608]
[1735610687690,0.09963153,92599.0,92591.0,0.3608]
[1735610688279,0.11257518,92600.0,92591.0,0.3608]
[1735610689585,0.11257518,92600.0,92583.0,0.054099]
[1735610689786,0.11257518,92593.0,92583.0,0.057099]
[1735610690393,0.11257518,92593.0,92583.0,0.054099]
[1735610690689,0.11457518,92600.0,92583.0,0.054099]
[1735610690887,0.11357518,92600.0,92583.0,0.054099]
[1735610691085,0.11357518,92600.0,92583.0,0.057099]
[1735610691784,0.11257518,92600.0,92583.0,0.057099]
[1735610692091,0.11257518,92600.0,92583.0,0.058099]
[1735610692683,0.11257518,92600.0,92583.0,0.055099]
[1735610692885,0.11257518,92600.0,92583.0,0.058099]
[1735610693377,0.11257518,92600.0,92583.0,0.004]
[1735610693797,0.37588546,92605.0,92583.0,0.004]
[1735610693798,0.11257518,92593.0,92583.0,0.004]
[1735610694290,0.11257518,92593.0,92583.0,0.001]
[1735610694597,0.11257518,92593.0,92583.0,0.004]
[1735610695896,0.11257518,92593.0,92583.0,0.001]
[1735610696088,0.11257518,92593.0,92583.0,0.004]
[1735610696291,0.3608,92585.0,92583.0,0.003]
[1735610696486,0.3608,92585.0,92583.0,0.004]
[1735610697483,0.3608,92585.0,92583.0,0.001]
[1735610697683,0.11257518,92593.0,92583.0,0.004]
[1735610697684,0.12687526,92593.0,92583.0,0.004]
[1735610698987,0.12687526,92593.0,92583.0,0.001]
[1735610699194,0.12687526,92593.0,92583.0,0.004]
[1735610700095,0.3608,92584.0,92583.0,0.004]
[1735610700295,0.3608,92584.0,92583.0,0.001]
[1735610700500,0.3608,92584.0,92583.0,0.007]
[1735610701396,0.12787526,92593.0,92583.0,0.001]
[1735610701596,0.3608,92586.0,92583.0,0.001]
[1735610701792,0.0839,92585.0,92571.0,0.3608]
[1735610701999,0.22515036,92581.0,92571.0,0.3608]
[1735610702193,0.3608,92574.0,92556.0,0.0824]
[1735610702395,0.3608,92565.0,92549.0,0.3608]
[1735610702594,0.3608,92557.0,92547.0,1.5]
[1735610702801,0.3608,92557.0,92539.0,0.0824]
[1735610702999,0.11257518,92549.0,92539.0,0.0824]
[1735610703299,0.22515036,92550.0,92537.0,1.5402]
[1735610703487,0.3608,92545.0,92536.0,0.3608]
[1735610703898,0.3608,92545.0,92539.0,0.004]
[1735610705598,0.3608,92545.0,92539.0,0.012]
[1735610705898,0.3608,92545.0,92539.0,0.008]
[1735610706095,0.3608,92545.0,92536.0,0.3648]
[1735610706409,0.3618,92545.0,92539.0,0.007]
[1735610706906,0.3618,92545.0,92539.0,0.01]
[1735610707310,0.3618,92545.0,92539.0,0.003]
[1735610707704,0.3618,92545.0,92536.0,0.3698]
[1735610707903,0.3618,92545.0,92539.0,0.002]
[1735610708406,0.37612533,92545.0,92539.0,0.002]
[1735610708901,0.37512533,92545.0,92539.0,0.006]
[1735610709613,0.37512533,92545.0,92529.0,1.5]
[1735610709798,0.3608,92536.0,92523.0,0.0402]
[1735610710211,0.3608,92536.0,92524.0,1.5]
[1735610710407,0.11257518,92533.0,92524.0,1.5]
[1735610710712,0.3608,92527.0,92524.0,1.5]
[1735610710898,0.3608,92527.0,92508.0,0.1212]
[1735610711098,0.11257518,92518.0,92508.0,0.1212]
[1735610711500,0.11257518,92518.0,92508.0,0.081]
[1735610711812,0.11257518,92518.0,92494.0,0.0402]
[1735610712009,0.0414,92517.0,92495.0,0.0396]
[1735610712308,0.3608,92510.0,92495.0,0.0396]
[1735610712506,0.47337518,92510.0,92495.0,0.0396]
[1735610712724,0.47337518,92510.0,92493.0,0.3608]
[1735610713610,0.47337518,92510.0,92507.0,0.003]
[1735610713810,0.3608,92510.0,92507.0,0.003]
[1735610714998,0.3618,92510.0,92500.0,0.106]
[1735610715612,0.3608,92510.0,92507.0,0.003]
[1735610716206,0.3618,92510.0,92500.0,0.104]
[1735610716411,0.3618,92510.0,92500.0,0.102]
[1735610716612,0.47437518,92510.0,92500.0,0.102]
[1735610716811,0.47337518,92510.0,92500.0,0.102]
[1735610717208,0.47337518,92510.0,92507.0,0.001]
[1735610717411,0.3608,92510.0,92507.0,0.001]
[1735610719112,0.3618,92510.0,92508.0,1.5]
[1735610719411,0.001,92510.0,92508.0,1.5]
[1735610719720,0.4022,92517.0,92508.0,1.5]
[1735610720316,0.4022,92517.0,92508.0,1.501]
[1735610720521,0.4022,92517.0,92508.0,1.502]
[1735610721312,0.4022,92517.0,92508.0,0.002]
[1735610722118,0.4022,92517.0,92508.0,0.003]
[1735610722313,0.3608,92509.0,92508.0,0.003]
[1735610722922,0.3608,92509.0,92508.0,0.001]
[1735610723125,0.3608,92509.0,92500.0,0.1]
[1735610723314,0.3608,92509.0,92508.0,0.001]
[1735610723511,0.3608,92509.0,92500.0,0.1]
[1735610723818,0.3608,92509.0,92454.0,0.25663878]
[1735610723819,0.3608,92501.0,92472.0,0.3608]
[1735610724024,0.22515036,92492.0,92473.0,1.5]
[1735610724226,0.11257518,92492.0,92473.0,1.50056]
[1735610725518,0.11257518,92492.0,92482.0,0.3628]
[1735610726719,0.11357518,92492.0,92482.0,0.3628]
[1735610727327,0.11357518,92492.0,92482.0,0.3668]
[1735610727628,0.22615036,92492.0,92482.0,0.3668]
[1735610728122,0.11357518,92492.0,92482.0,0.3668]
[1735610728529,0.3608,92484.0,92482.0,0.006]
[1735610728924,0.3608,92484.0,92482.0,0.002]
[1735610729231,0.3608,92484.0,92482.0,0.005]
[1735610729725,0.3608,92484.0,92472.0,0.3608]
[1735610730029,0.3608,92484.0,92482.0,0.003]
[1735610730927,0.3608,92484.0,92482.0,0.004]
[1735610731520,0.038,92491.0,92482.0,0.004]
[1735610731720,0.001,92484.0,92482.0,0.002]
[1735610731924,0.05208579,92491.0,92482.0,0.002]
[1735610732627,0.05208579,92491.0,92482.0,0.004]
[1735610733222,0.0404,92490.0,92482.0,0.004]
[1735610733423,0.0404,92490.0,92482.0,0.002]
[1735610733726,0.0404,92490.0,92482.0,0.004]
[1735610734524,0.3608,92483.0,92466.0,0.19239623]
[1735610734729,0.11257518,92476.0,92466.0,0.19239623]
[1735610735534,0.11257518,92476.0,92463.0,0.4408]
[1735610736232,0.11357518,92476.0,92472.0,0.3608]
[1735610736432,0.001,92476.0,92472.0,0.3608]
[1735610738033,0.01498186,92476.0,92472.0,0.3628]
[1735610738929,0.01398186,92476.0,92472.0,0.002]
[1735610739131,0.11257518,92482.0,92472.0,0.002]
[1735610740334,0.11257518,92482.0,92481.0,0.19239623]
[1735610740632,0.3608,92483.0,92481.0,0.19239623]
[1735610740827,0.37432374,92483.0,92481.0,0.19239623]
[1735610741423,0.37432374,92483.0,92481.0,0.25663878]
[1735610742532,0.37432374,92483.0,92475.0,0.32337295]
[1735610742739,0.48689892,92483.0,92475.0,0.32337295]
[1735610743629,0.48789892,92483.0,92476.0,0.32337295]
[1735610744733,0.48789892,92483.0,92477.0,0.25826448]
[1735610745432,0.48689892,92483.0,92477.0,0.25826448]
[1735610745637,0.48689892,92483.0,92473.0,0.32337295]
[1735610746029,0.48689892,92483.0,92477.0,0.001]
[1735610746740,0.37432374,92483.0,92477.0,0.001]
[1735610747035,0.01352374,92483.0,92479.0,0.3608]
[1735610747239,0.11257518,92490.0,92479.0,0.3608]
[1735610747641,0.61275109,92492.0,92479.0,0.3608]
[1735610747827,0.61163108,92492.0,92487.0,0.25814703]
[1735610748031,0.61163108,92492.0,92488.0,0.0776]
[1735610748336,0.4990559,92492.0,92488.0,0.0776]
[1735610749137,0.0179359,92492.0,92490.0,0.3608]
[1735610749527,0.0139359,92492.0,92490.0,0.3608]
[1735610749730,0.004,92492.0,92490.0,0.3608]
[1735610750437,0.005,92492.0,92490.0,0.3608]
[1735610750642,0.48524,92506.0,92491.0,0.054153]
[1735610750839,0.49876865,92506.0,92505.0,0.3608]
[1735610751431,0.31346865,92506.0,92505.0,0.414945]
[1735610751633,0.3608,92523.0,92509.0,0.054142]
[1735610751832,0.3608,92523.0,92511.0,0.054142]
[1735610752039,0.11257518,92530.0,92514.0,0.3608]
[1735610752233,0.11257518,92524.0,92514.0,0.3608]
[1735610752933,0.01406385,92524.0,92514.0,0.3608]
[1735610753134,0.11257518,92530.0,92514.0,0.3608]
[1735610753646,0.11457518,92530.0,92514.0,0.3608]
[1735610753936,0.001,92524.0,92514.0,0.3608]
[1735610754535,0.001,92524.0,92515.0,0.0812]
[1735610754737,0.001,92524.0,92523.0,0.3608]
[1735610755241,0.001,92524.0,92523.0,1.8608]
[1735610755933,0.003,92524.0,92523.0,1.8608]
[1735610756643,0.006,92524.0,92523.0,1.8608]
[1735610757433,0.009,92524.0,92523.0,1.8608]
[1735610758243,0.009,92524.0,92523.0,0.3608]
[1735610765752,0.009,92524.0,92523.0,1.8608]
[1735610768447,0.11257518,92570.0,92543.0,0.054123]
[1735610768650,0.0396,92561.0,92546.0,0.3608]
[1735610768844,0.0396,92561.0,92547.0,0.05412]
[1735610769543,0.01328736,92549.0,92548.0,1.5]
[1735610769749,0.016,92549.0,92548.0,1.55412]
[1735610770343,0.001,92549.0,92548.0,1.5]
[1735610770542,0.05296238,92561.0,92554.0,0.054116]
[1735610770854,0.05296238,92561.0,92554.0,0.414916]
[1735610771351,0.01336238,92561.0,92559.0,0.054113]
[1735610771658,0.0778,92569.0,92560.0,0.054113]
[1735610771956,0.0778,92569.0,92562.0,0.3608]
[1735610772347,0.09073066,92569.0,92562.0,0.3608]
[1735610773448,0.09073066,92569.0,92562.0,0.3628]
[1735610773846,0.09073066,92569.0,92562.0,0.3638]
[1735610779756,0.09073066,92569.0,92562.0,0.3618]
[1735610779959,0.09073066,92569.0,92562.0,0.3628]
[1735610780457,0.09073066,92569.0,92562.0,0.3618]
[1735610780759,0.09073066,92569.0,92562.0,0.3628]
[1735610786662,0.09073066,92569.0,92562.0,0.3618]
[1735610786967,0.09073066,92569.0,92562.0,0.3628]
[1735610787352,0.09073066,92569.0,92562.0,0.3618]